[Event "Djerba Festival Open-B 2025"]
[Site "Djerba"]
[Date "2025.02.21"]
[Round "7.7"]
[White "Zouaghi, Ahmed"]
[Black "Ajbara Jamal"]
[Result "1-0"]
[Annotator "RC"]
[ECO "B23"]
[WhiteElo "1919"]
[BlackElo "1898"]
[PlyCount "97"]
[EventDate "2025.02.15"]
[EventType "swiss"]
[EventCountry "TUN"]
[SourceTitle "playchess.com"]
[Source "ChessBase"]
[SourceQuality "1"]
[TimeControl "5400+30"]

1. e4 {[%emt 0:00:02]} c5 {[%emt 0:01:00]} 2. Nc3 {[%emt 0:00:11]} e6 {[%emt 0:01:11]} 3. f4 {[%emt 0:01:27]} d5 {[%emt 0:01:06]} 4. Nf3 {[%emt 0:00:20]} d4 {[%emt 0:02:29]} 5. Bb5+ {[%emt 0:00:28]} Nc6 {[%emt 0:00:20]} 6. Bxc6+ {[%emt 0:00:24]} bxc6 {[%emt 0:00:02]} 7. Nb1 {[%emt 0:01:08]} Nf6 {[%emt 0:03:25]} 8. d3 {[%emt 0:01:41]} Be7 {[%emt 0:02:04]} 9. O-O {[%emt 0:03:05]} O-O {[%emt 0:00:49]} 10. Nbd2 {[%emt 0:03:41]} Ba6 {[%emt 0:04:22]} 11. Ne5 {[%emt 0:04:10]} Qc7 {[%emt 0:00:58]} 12. b3 {[%emt 0:03:13]} Ne8 {[%emt 0:02:44]} 13. g3 {[%emt 0:11:42]} f5 {[%emt 0:04:55]} 14. Qf3 {[%emt 0:11:18]} Rc8 {[%emt 0:03:14]} 15. Ba3 {[%emt 0:04:53]} Nf6 {[%emt 0:05:08]} 16. Rfe1 {[%emt 0:02:23]} Ne8 {[%emt 0:08:38]} 17. exf5 {[%emt 0:04:10]} Rxf5 {[%emt 0:04:49]} 18. Nec4 {[%emt 0:03:50]} Qd7 {[%emt 0:04:29]} 19. Qe4 {[%emt 0:12:02]} Nc7 {[%emt 0:02:10]} 20. Ne5 {[%emt 0:01:59]} Qd6 {[%emt 0:03:53]} 21. Nxc6 {[%emt 0:04:10]} Bf8 {[%emt 0:04:28]} 22. Nc4 {[%emt 0:01:57]} Qd7 {[%emt 0:03:03]} 23. N4e5 {[%emt 0:05:13]} Qd6 {[%emt 0:04:03]} 24. Nc4 {[%emt 0:00:58]} Qd7 {[%emt 0:02:25]} 25. N6e5 {[%emt 0:04:37]} Qe7 {[%emt 0:05:02]} 26. Nf3 {[%emt 0:03:04]} Rf6 {[%emt 0:03:00]} 27. Nxd4 {[%emt 0:02:51]} Nd5 {[%emt 0:05:05]} 28. Nxe6 {[%emt 0:02:39]} Bb7 {[%emt 0:00:53]} 29. Ng5 {[%emt 0:00:23]} Qxe4 {[%emt 0:02:33]} 30. dxe4 {[%emt 0:02:01]} Nc3 {[%emt 0:00:55]} 31. Bb2 {[%emt 0:00:32]} Nb5 {[%emt 0:01:06]} 32. Bxf6 {[%emt 0:00:23]} gxf6 {[%emt 0:00:02]} 33. Nf3 {[%emt 0:00:39]} Nc3 {[%emt 0:00:14]} 34. Nfd2 {[%emt 0:00:48]} Rd8 {[%emt 0:00:15]} 35. Re3 {[%emt 0:01:07]} Nb5 {[%emt 0:00:11]} 36. Rd3 {[%emt 0:00:48]} Nd4 {[%emt 0:00:18]} 37. Kf2 {[%emt 0:00:31]} Re8 {[%emt 0:00:18]} 38. c3 {[%emt 0:00:42]} Nb5 {[%emt 0:00:35]} 39. a4 {[%emt 0:00:27]} Nc7 {[%emt 0:00:18]} 40. Rd7 {[%emt 0:00:50]} Rc8 {[%emt 0:00:12]} 41. Nd6 {[%emt 0:00:53]} Bc6 {[%emt 0:00:49]} 42. Nxc8 {[%emt 0:00:39]} Bxd7 {[%emt 0:00:05]} 43. Nxa7 {[%emt 0:00:14]} c4 {[%emt 0:00:12]} 44. Nb5 {[%emt 0:00:18]} Bc5+ {[%emt 0:00:24]} 45. Kf3 {[%emt 0:00:33]} Bxb5 {[%emt 0:00:32]} 46. axb5 {[%emt 0:00:04]} cxb3 {[%emt 0:00:11]} 47. Nxb3 {[%emt 0:00:14]} Bb6 {[%emt 0:00:15]} 48. c4 {[%emt 0:00:10]} Ne6 {[%emt 0:00:06]} 49. Ra6 {[%emt 0:00:28]} 1-0

[Event "Djerba Festival Open-B 2025"]
[Site "Djerba"]
[Date "2025.02.21"]
[Round "7.8"]
[White "Cornileau, Raphael"]
[Black "Marceil, Jean"]
[Result "1-0"]
[Annotator "RC"]
[ECO "C05"]
[WhiteElo "1864"]
[BlackElo "1901"]
[PlyCount "112"]
[EventDate "2025.02.15"]
[EventType "swiss"]
[EventCountry "TUN"]
[SourceTitle "playchess.com"]
[Source "ChessBase"]
[SourceQuality "1"]
[TimeControl "5400+30"]

1. e4 {[%emt 0:01:53]} e6 {[%emt 1:31:00]} 2. d4 {[%emt 0:00:06]} d5 {[%emt 0:00:00]} 3. Nd2 {[%emt 0:00:32]} Nf6 {[%emt 0:00:00]} 4. e5 {[%emt 0:00:07]} Nfd7 {[%emt 0:00:00]} 5. f4 {[%emt 0:00:16]} c5 {[%emt 0:00:00]} 6. c3 {[%emt 0:00:03]} Nc6 {[%emt 0:00:00]} 7. Ngf3 {[%emt 0:00:05]} a5 {[%emt 0:00:00]} 8. Bb5 {[%emt 0:09:03]} Qb6 {[%emt 0:00:00]} 9. Qa4 {[%emt 0:01:09]} Be7 {[%emt 0:00:00]} 10. O-O {[%emt 0:01:52]} O-O {[%emt 0:00:00]} 11. Bd3 {[%emt 0:01:54]} f5 {[%emt 0:00:00]} 12. Rf2 {[%emt 0:05:45]} Qc7 {[%emt 0:00:00]} 13. Bb1 {[%emt 0:02:10]} cxd4 {[%emt 0:00:00]} 14. c4 {[%emt 0:00:58]} Nb6 {[%emt 0:00:00]} 15. Qb5 {[%emt 0:00:19]} Bd7 {[%emt 0:00:00]} 16. c5 {[%emt 0:03:31]} Nc8 {[%emt 0:00:00]} 17. Qf1 {[%emt 0:01:49]} Bxc5 {[%emt 0:00:00]} 18. Bd3 {[%emt 0:00:01]} Nb4 {[%emt 0:00:00]} 19. Nb3 {[%emt 0:00:22]} Qb6 {[%emt 0:00:00]} 20. Nxc5 {[%emt 0:04:25]} Qxc5 {[%emt 0:00:00]} 21. a3 {[%emt 0:00:18]} Nxd3 {[%emt 0:00:00]} 22. Qxd3 {[%emt 0:00:06]} Nb6 {[%emt 0:00:00]} 23. Rc2 {[%emt 0:01:04]} Bb5 {[%emt 0:00:00]} 24. Rxc5 {[%emt 0:00:36]} Bxd3 {[%emt 0:00:00]} 25. Nxd4 {[%emt 0:00:14]} Rfe8 {[%emt 0:00:00]} 26. Rc7 {[%emt 0:01:37]} Ba6 {[%emt 0:00:00]} 27. b4 {[%emt 0:00:26]} axb4 {[%emt 0:00:00]} 28. axb4 {[%emt 0:00:23]} Bc4 {[%emt 0:00:00]} 29. Rxa8 {[%emt 0:01:43]} Rxa8 {[%emt 0:00:00]} 30. Rxb7 {[%emt 0:00:07]} Ra1 {[%emt 0:00:00]} 31. Rxb6 {[%emt 0:00:12]} Rxc1+ {[%emt 0:00:00]} 32. Kf2 {[%emt 0:00:07]} Rd1 {[%emt 0:00:00]} 33. Nxe6 {[%emt 0:01:41]} Rd2+ {[%emt 0:00:00]} 34. Ke1 {[%emt 0:05:17]} Re2+ {[%emt 0:00:00]} 35. Kd1 {[%emt 0:00:02]} h6 {[%emt 0:00:00]} 36. Nd4 {[%emt 0:04:32]} Re4 {[%emt 0:00:00]} 37. Nxf5 {[%emt 0:00:14]} Rxf4 {[%emt 0:00:24]} 38. Rb8+ {[%emt 0:00:16]} Kh7 {[%emt 0:00:09]} 39. e6 {[%emt 0:04:10]} Rxf5 {[%emt 0:03:39]} 40. e7 {[%emt 0:00:03]} Bb3+ {[%emt 0:00:23]} 41. Kd2 {[%emt 0:00:10]} Ba4 {[%emt 0:00:08]} 42. e8=Q {[%emt 0:00:09]} Bxe8 {[%emt 0:00:42]} 43. Rxe8 {[%emt 0:00:05]} Rf2+ {[%emt 0:02:50]} 44. Re2 {[%emt 0:00:15]} Rf4 {[%emt 0:01:13]} 45. Kc3 {[%emt 0:00:05]} Kg6 {[%emt 0:00:27]} 46. Rb2 {[%emt 0:00:22]} Kf5 {[%emt 0:00:22]} 47. b5 {[%emt 0:00:06]} Ke5 {[%emt 0:00:18]} 48. b6 {[%emt 0:00:09]} Rc4+ {[%emt 0:00:20]} 49. Kd3 {[%emt 0:00:14]} Rc8 {[%emt 0:00:07]} 50. b7 {[%emt 0:00:49]} Rb8 {[%emt 0:00:10]} 51. Rb6 {[%emt 0:01:45]} h5 {[%emt 0:00:30]} 52. h4 {[%emt 0:00:33]} g6 {[%emt 0:06:21]} 53. g3 {[%emt 0:00:24]} Kf5 {[%emt 0:03:26]} 54. Kd4 {[%emt 0:00:16]} Rxb7 {[%emt 0:00:40]} 55. Rxb7 {[%emt 0:00:08]} Kg4 {[%emt 0:00:06]} 56. Rb3 {[%emt 0:00:10]} Kf5 {[%emt 0:05:15]} 1-0

[Event "Djerba Festival Open-B 2025"]
[Site "Djerba"]
[Date "2025.02.21"]
[Round "7.9"]
[White "Ktita, Dhafer"]
[Black "Zerarga, Imene"]
[Result "*"]
[Annotator "RC"]
[ECO "B52"]
[WhiteElo "1949"]
[BlackElo "1831"]
[PlyCount "91"]
[EventDate "2025.02.15"]
[EventType "swiss"]
[EventCountry "TUN"]
[SourceTitle "playchess.com"]
[Source "ChessBase"]
[SourceQuality "1"]
[TimeControl "5400+30"]

1. e4 {[%emt 1:31:00]} c5 {[%emt 1:31:00]} 2. Nf3 {[%emt 0:00:30]} d6 {[%emt 0:00:30]} 3. Bb5+ {[%emt 0:00:30]} Bd7 {[%emt 0:00:30]} 4. Bxd7+ {[%emt 0:00:30]} Nxd7 {[%emt 0:00:30]} 5. c4 {[%emt 0:00:30]} Ngf6 {[%emt 0:00:30]} 6. Nc3 {[%emt 0:00:30]} g6 {[%emt 0:00:30]} 7. O-O {[%emt 0:00:30]} Bg7 {[%emt 0:00:30]} 8. d3 {[%emt 0:00:30]} O-O {[%emt 0:00:30]} 9. Ne1 {[%emt 0:00:30]} a6 {[%emt 0:00:30]} 10. f4 {[%emt 0:00:30]} Rb8 {[%emt 0:00:30]} 11. a4 {[%emt 0:00:30]} Qc7 {[%emt 0:00:30]} 12. Nc2 {[%emt 0:00:30]} Rfe8 {[%emt 0:00:30]} 13. Bd2 {[%emt 0:00:30]} Nf8 {[%emt 0:00:30]} 14. g4 e6 {[%emt 0:00:30]} 15. Qf3 {[%emt 0:01:00]} h5 {[%emt 0:00:30]} 16. g5 {[%emt 0:00:30]} N6d7 {[%emt 0:00:30]} 17. Rf2 {[%emt 0:00:30]} Qb6 {[%emt 0:00:30]} 18. Rb1 {[%emt 0:00:30]} Qb3 {[%emt 0:00:30]} 19. Na1 {[%emt 0:00:30]} Qb4 {[%emt 0:00:30]} 20. Nb5 {[%emt 0:00:30]} Qxa4 {[%emt 0:00:30]} 21. Nxd6 {[%emt 0:00:30]} Qa2 {[%emt 0:00:30]} 22. Rff1 {[%emt 0:00:30]} Red8 {[%emt 0:00:30]} 23. e5 {[%emt 0:00:30]} b5 {[%emt 0:00:30]} 24. Nc2 {[%emt 0:00:30]} bxc4 {[%emt 0:00:30]} 25. Bc3 {[%emt 0:00:30]} cxd3 {[%emt 0:00:30]} 26. Qxd3 {[%emt 0:00:30]} Qb3 {[%emt 0:00:30]} 27. Ne3 {[%emt 0:00:30]} Nb6 {[%emt 0:00:30]} 28. Ra1 {[%emt 0:00:30]} Nc8 {[%emt 0:00:30]} 29. Rxa6 {[%emt 0:00:30]} Qb7 {[%emt 0:00:30]} 30. Nc2 {[%emt 0:00:30]} Nxd6 {[%emt 0:00:30]} 31. Rxd6 {[%emt 0:00:30]} Qc7 {[%emt 0:00:30]} 32. Rd1 {[%emt 0:00:30]} Rxd6 {[%emt 0:00:30]} 33. Qxd6 {[%emt 0:00:30]} Qxd6 {[%emt 0:00:30]} 34. Rxd6 {[%emt 0:00:30]} Rc8 {[%emt 0:00:30]} 35. Na3 {[%emt 0:00:30]} Nh7 {[%emt 0:00:30]} 36. Nc4 {[%emt 0:00:30]} Bf8 {[%emt 0:00:30]} 37. Rd7 {[%emt 0:00:30]} Kg7 {[%emt 0:00:30]} 38. Kf2 {[%emt 0:00:30]} Re8 {[%emt 0:00:30]} 39. Nd6 {[%emt 0:00:30]} Bxd6 {[%emt 0:00:30]} 40. exd6+ {[%emt 0:00:30]} Kf8 {[%emt 0:00:30]} 41. Ke2 {[%emt 0:00:30]} Ra8 {[%emt 0:00:30]} 42. Kd3 {[%emt 0:00:30]} Ke8 {[%emt 0:00:30]} 43. Re7+ {[%emt 0:00:30]} Kf8 {[%emt 0:00:30]} 44. Kc4 {[%emt 0:00:30]} Rc8 {[%emt 0:00:30]} 45. Be5 {[%emt 0:00:30]} Re8 {[%emt 0:00:30]} 46. Bg7+ {[%emt 0:00:30]} *

[Event "Djerba Festival Open-B 2025"]
[Site "Djerba"]
[Date "2025.02.21"]
[Round "7.10"]
[White "Dejardin, Gregoire"]
[Black "Banat, Rizlene"]
[Result "1-0"]
[Annotator "RC"]
[ECO "A06"]
[WhiteElo "1932"]
[BlackElo "1785"]
[PlyCount "96"]
[EventDate "2025.02.15"]
[EventType "swiss"]
[EventCountry "TUN"]
[SourceTitle "playchess.com"]
[Source "ChessBase"]
[SourceQuality "1"]
[TimeControl "5400+30"]

1. Nf3 {[%emt 0:00:03]} c5 {[%emt 0:10:21]} 2. b3 {[%emt 0:00:07]} d5 {[%emt 0:01:09]} 3. e3 {[%emt 0:00:12]} Nf6 {[%emt 0:00:30]} 4. Bb2 {[%emt 0:00:07]} Nbd7 {[%emt 0:01:18]} 5. c4 {[%emt 0:01:07]} b6 {[%emt 0:01:56]} 6. Nc3 {[%emt 0:00:32]} Bb7 {[%emt 0:00:27]} 7. Be2 {[%emt 0:00:46]} e6 {[%emt 0:01:28]} 8. O-O {[%emt 0:00:11]} Bd6 {[%emt 0:03:12]} 9. cxd5 {[%emt 0:00:15]} exd5 {[%emt 0:00:25]} 10. d4 {[%emt 0:00:41]} O-O {[%emt 0:01:31]} 11. a4 {[%emt 0:00:52]} Ne4 {[%emt 0:03:29]} 12. dxc5 {[%emt 0:02:22]} Nxc3 {[%emt 0:01:20]} 13. Bxc3 {[%emt 0:00:07]} Nxc5 {[%emt 0:00:32]} 14. a5 {[%emt 0:04:54]} Ne4 {[%emt 0:03:43]} 15. Bb2 {[%emt 0:03:28]} bxa5 {[%emt 0:01:20]} 16. Qd4 {[%emt 0:02:01]} f6 {[%emt 0:00:35]} 17. Rfd1 {[%emt 0:00:55]} Qb6 {[%emt 0:09:01]} 18. Ba3 {[%emt 0:11:53]} Bxa3 {[%emt 0:01:01]} 19. Rxa3 {[%emt 0:00:09]} Rfc8 {[%emt 0:04:03]} 20. Rda1 {[%emt 0:04:06]} Rc5 {[%emt 0:08:06]} 21. Bd3 {[%emt 0:02:01]} Rac8 {[%emt 0:01:57]} 22. g3 {[%emt 0:05:24]} Ba6 {[%emt 0:07:38]} 23. Kg2 {[%emt 0:02:28]} Bxd3 {[%emt 0:04:06]} 24. Qxd3 {[%emt 0:01:26]} Nd6 {[%emt 0:07:59]} 25. Nd4 {[%emt 0:01:19]} Nb7 {[%emt 0:02:46]} 26. Qf5 {[%emt 0:01:19]} Re8 {[%emt 0:05:55]} 27. Qd7 {[%emt 0:01:20]} Rd8 {[%emt 0:03:56]} 28. Qe6+ {[%emt 0:00:30]} Qxe6 {[%emt 0:01:28]} 29. Nxe6 {[%emt 0:00:07]} Rdc8 {[%emt 0:00:11]} 30. Nxc5 {[%emt 0:00:09]} Rxc5 {[%emt 0:00:09]} 31. Kf3 {[%emt 0:03:08]} Kf7 {[%emt 0:02:31]} 32. R1a2 {[%emt 0:03:19]} Kg6 {[%emt 0:01:04]} 33. Ke2 {[%emt 0:00:42]} Rb5 {[%emt 0:02:03]} 34. f3 {[%emt 0:04:57]} Rb4 {[%emt 0:02:40]} 35. Kd3 {[%emt 0:05:40]} Rb5 {[%emt 0:02:23]} 36. Kc3 {[%emt 0:04:27]} a6 {[%emt 0:01:16]} 37. Rd2 {[%emt 0:01:40]} Rc5+ {[%emt 0:00:29]} 38. Kb2 {[%emt 0:00:42]} Rb5 {[%emt 0:00:09]} 39. Ka2 {[%emt 0:02:31]} Rc5 {[%emt 0:01:40]} 40. Kb2 {[%emt 0:00:41]} Rb5 {[%emt 0:00:08]} 41. Rd4 {[%emt 0:01:02]} Nd6 {[%emt 0:01:02]} 42. Ka1 {[%emt 0:04:36]} Nf5 {[%emt 0:00:48]} 43. Rd3 {[%emt 0:01:25]} Ne7 {[%emt 0:01:03]} 44. Rc3 {[%emt 0:02:20]} Nf5 {[%emt 0:00:37]} 45. Ra4 {[%emt 0:01:05]} Nd6 {[%emt 0:00:42]} 46. Ka2 {[%emt 0:00:25]} Nb7 {[%emt 0:00:11]} 47. Rd4 {[%emt 0:03:17]} Nd6 {[%emt 0:02:14]} 48. e4 {[%emt 0:00:50]} Rb4 {[%emt 0:01:58]} 1-0

[Event "Djerba Festival Open-B 2025"]
[Site "Djerba"]
[Date "2025.02.21"]
[Round "7.11"]
[White "Nayaradou, Philippe"]
[Black "Gely, Bernard"]
[Result "1/2-1/2"]
[Annotator "NA"]
[ECO "E11"]
[WhiteElo "1783"]
[BlackElo "1928"]
[PlyCount "54"]
[EventDate "2025.02.15"]
[EventType "swiss"]
[EventCountry "TUN"]
[SourceTitle "playchess.com"]
[Source "ChessBase"]
[SourceQuality "1"]
[TimeControl "5400+30"]

1. d4 {[%emt 0:00:13]} Nf6 {[%emt 0:00:52]} 2. Nf3 {[%emt 0:00:34]} e6 {[%emt 0:00:17]} 3. c4 {[%emt 0:00:10]} Bb4+ {[%emt 0:00:09]} 4. Bd2 {[%emt 0:00:18]} Qe7 {[%emt 0:00:01]} 5. a3 {[%emt 0:01:18]} Bxd2+ {[%emt 0:00:03]} 6. Qxd2 {[%emt 0:00:53]} b6 {[%emt 0:00:13]} 7. Nc3 {[%emt 0:00:58]} Bb7 {[%emt 0:00:03]} 8. g3 {[%emt 0:01:09]} O-O {[%emt 0:00:08]} 9. Bg2 {[%emt 0:00:06]} d6 {[%emt 0:00:15]} 10. O-O {[%emt 0:00:46]} c5 {[%emt 0:00:29]} 11. Rfd1 {[%emt 0:03:13]} Nbd7 {[%emt 0:02:01]} 12. dxc5 {[%emt 0:02:36]} dxc5 {[%emt 0:00:03]} 13. Qd6 {[%emt 0:01:00]} Rfe8 {[%emt 0:00:04]} 14. Rd2 {[%emt 0:02:03]} Nf8 {[%emt 0:01:26]} 15. Rad1 {[%emt 0:00:34]} Qxd6 {[%emt 0:02:03]} 16. Rxd6 {[%emt 0:00:08]} Ne4 {[%emt 0:00:40]} 17. Nxe4 {[%emt 0:00:59]} Bxe4 {[%emt 0:00:01]} 18. Ne5 {[%emt 0:03:29]} Bxg2 {[%emt 0:00:29]} 19. Kxg2 {[%emt 0:00:08]} f6 {[%emt 0:00:21]} 20. Nf3 {[%emt 0:02:35]} Kf7 {[%emt 0:00:05]} 21. e4 {[%emt 0:00:35]} Rac8 {[%emt 0:01:09]} 22. e5 {[%emt 0:01:00]} Ke7 {[%emt 0:00:15]} 23. Kf1 {[%emt 0:02:42]} Red8 {[%emt 0:00:02]} 24. Rxd8 {[%emt 0:00:24]} Rxd8 {[%emt 0:00:01]} 25. Rxd8 {[%emt 0:00:09]} Kxd8 {[%emt 0:00:02]} 26. Ke2 {[%emt 0:00:17]} Ke7 {[%emt 1:32:18]} 27. exf6+ gxf6 1/2-1/2

[Event "Djerba Festival Open-B 2025"]
[Site "Djerba"]
[Date "2025.02.21"]
[Round "7.12"]
[White "Ertemi, Ibrahim K"]
[Black "Charfeddine, Akram"]
[Result "*"]
[Annotator "ChessBase"]
[ECO "B23"]
[WhiteElo "1823"]
[BlackElo "1915"]
[PlyCount "102"]
[EventDate "2025.02.15"]
[EventType "swiss"]
[EventCountry "TUN"]
[SourceTitle "playchess.com"]
[Source "ChessBase"]
[SourceQuality "1"]
[TimeControl "5400+30"]

1. e4 {[%emt 0:00:05]} c5 {[%emt 0:00:09]} 2. Nc3 {[%emt 0:00:19]} d6 {[%emt 0:01:12]} 3. Be2 {[%emt 0:02:38]} Nc6 {[%emt 0:00:35]} 4. Nd5 {[%emt 0:01:38]} e6 {[%emt 0:00:31]} 5. Ne3 {[%emt 0:00:57]} Nf6 {[%emt 0:00:38]} 6. d3 {[%emt 0:01:03]} d5 {[%emt 0:01:19]} 7. exd5 {[%emt 0:00:19]} exd5 {[%emt 0:00:21]} 8. Ng4 {[%emt 0:05:43]} Be7 {[%emt 0:03:02]} 9. Nxf6+ {[%emt 0:01:13]} Bxf6 {[%emt 0:00:03]} 10. Nf3 {[%emt 0:01:21]} O-O {[%emt 0:04:12]} 11. h3 {[%emt 0:03:01]} Qb6 {[%emt 0:02:00]} 12. O-O {[%emt 0:00:35]} Bf5 {[%emt 0:02:40]} 13. c3 {[%emt 0:00:50]} h6 {[%emt 0:01:52]} 14. Qd2 {[%emt 0:07:23]} Rfe8 {[%emt 0:03:13]} 15. b3 {[%emt 0:02:09]} Qa5 {[%emt 0:03:25]} 16. Bb2 {[%emt 0:04:06]} d4 {[%emt 0:01:40]} 17. b4 {[%emt 0:01:38]} dxc3 {[%emt 0:02:04]} 18. Bxc3 {[%emt 0:00:32]} Bxc3 {[%emt 0:00:50]} 19. Qxc3 {[%emt 0:00:11]} Qxb4 {[%emt 0:00:33]} 20. Qc2 {[%emt 0:04:02]} Nd4 {[%emt 0:01:28]} 21. Nxd4 {[%emt 0:00:21]} Qxd4 {[%emt 0:00:17]} 22. Rfe1 {[%emt 0:03:04]} Rad8 {[%emt 0:03:33]} 23. Bf1 {[%emt 0:04:02]} b6 {[%emt 0:04:02]} 24. a4 {[%emt 0:01:09]} a5 {[%emt 0:06:13]} 25. Red1 {[%emt 0:04:52]} Rd6 {[%emt 0:03:15]} 26. Rab1 {[%emt 0:09:27]} Red8 {[%emt 0:01:30]} 27. Qb3 {[%emt 0:03:44]} Rg6 {[%emt 0:04:59]} 28. Re1 {[%emt 0:06:16]} Bxh3 {[%emt 0:05:00]} 29. Re4 {[%emt 0:00:16]} Qd6 {[%emt 0:01:24]} 30. Rbe1 {[%emt 0:01:01]} Be6 {[%emt 0:00:53]} 31. Qb2 {[%emt 0:00:58]} Rg4 {[%emt 0:03:35]} 32. Rb1 {[%emt 0:02:45]} Rg6 {[%emt 0:00:00]} 33. Rbe1 {[%emt 0:00:00]} Rg4 {[%emt 0:01:00]} 34. Rb1 {[%emt 0:01:00]} Rb8 {[%emt 0:03:52]} 35. Qc3 {[%emt 0:01:18]} h5 {[%emt 0:05:33]} 36. Be2 {[%emt 0:01:12]} Rg5 {[%emt 0:02:14]} 37. Rh4 {[%emt 0:02:48]} Bg4 {[%emt 0:03:12]} 38. Bf1 {[%emt 0:02:59]} Re8 {[%emt 0:01:24]} 39. Qc1 {[%emt 0:01:50]} Rd5 {[%emt 0:02:09]} 40. f3 {[%emt 0:02:08]} Bxf3 {[%emt 0:00:41]} 41. Rf4 {[%emt 0:01:32]} Bg4 {[%emt 0:24:27]} 42. Rf2 {[%emt 0:00:34]} Rd4 {[%emt 0:00:00]} 43. Qg5 {[%emt 0:00:39]} Rxa4 {[%emt 0:00:00]} 44. Rc1 {[%emt 0:01:38]} Rb4 {[%emt 0:00:00]} 45. Qd2 {[%emt 0:01:01]} Qe5 {[%emt 0:00:00]} 46. Qa2 {[%emt 0:00:38]} Re6 {[%emt 0:00:00]} 47. Qd2 {[%emt 0:01:30]} Rf6 {[%emt 0:00:00]} 48. Re1 {[%emt 0:02:06]} Qd4 {[%emt 0:00:00]} 49. Re4 {[%emt 0:03:05]} Rxf2 {[%emt 0:00:00]} 50. Qxf2 {[%emt 0:00:07]} Qxf2+ {[%emt 0:00:00]} 51. Kxf2 {[%emt 0:00:02]} Rxe4 {[%emt 0:00:00]} *

[Event "Djerba Festival Open-B 2025"]
[Site "Djerba"]
[Date "2025.02.21"]
[Round "7.13"]
[White "Algadari, Mahmod"]
[Black "Badya, Vasily"]
[Result "0-1"]
[Annotator "RC"]
[ECO "E70"]
[WhiteElo "1909"]
[BlackElo "1765"]
[PlyCount "90"]
[EventDate "2025.02.15"]
[EventType "swiss"]
[EventCountry "TUN"]
[SourceTitle "playchess.com"]
[Source "ChessBase"]
[SourceQuality "1"]
[TimeControl "5400+30"]

1. d4 {[%emt 0:06:37]} Nf6 {[%emt 0:00:35]} 2. c4 {[%emt 0:00:11]} g6 {[%emt 0:00:07]} 3. Nc3 {[%emt 0:00:28]} Bg7 {[%emt 0:00:06]} 4. e4 {[%emt 0:00:34]} d6 {[%emt 0:00:09]} 5. Bf4 {[%emt 0:01:20]} O-O {[%emt 0:03:52]} 6. Qd2 {[%emt 0:00:15]} c5 {[%emt 0:02:15]} 7. d5 {[%emt 0:01:01]} Qa5 {[%emt 0:05:11]} 8. Bd3 {[%emt 0:03:34]} Re8 {[%emt 0:11:41]} 9. Bh6 {[%emt 0:01:14]} Bh8 {[%emt 0:00:25]} 10. f3 {[%emt 0:00:38]} e6 {[%emt 0:08:58]} 11. h4 {[%emt 0:01:39]} exd5 {[%emt 0:00:44]} 12. cxd5 {[%emt 0:00:23]} a6 {[%emt 0:10:45]} 13. h5 {[%emt 0:00:40]} b5 {[%emt 0:00:12]} 14. hxg6 {[%emt 0:00:49]} fxg6 {[%emt 0:00:14]} 15. Nge2 {[%emt 0:04:48]} c4 {[%emt 0:03:37]} 16. Bc2 {[%emt 0:01:08]} b4 {[%emt 0:01:10]} 17. Nd1 {[%emt 0:01:30]} Nbd7 {[%emt 0:00:30]} 18. Ne3 {[%emt 0:07:46]} Ne5 {[%emt 0:10:52]} 19. Kf2 {[%emt 0:10:47]} Qc5 {[%emt 0:04:24]} 20. Qd4 {[%emt 0:04:51]} Nfg4+ {[%emt 0:03:36]} 21. Kf1 {[%emt 0:06:47]} Nxe3+ {[%emt 0:01:00]} 22. Qxe3 {[%emt 0:07:19]} Qxe3 {[%emt 0:00:22]} 23. Bxe3 {[%emt 0:00:02]} a5 {[%emt 0:09:55]} 24. Ba4 {[%emt 0:07:42]} Rf8 {[%emt 0:00:36]} 25. Nd4 {[%emt 0:01:14]} Ng4 {[%emt 0:02:04]} 26. Bg1 Ne5 {[%emt 0:02:33]} 27. Ke2 {[%emt 0:01:30]} Nd3 {[%emt 0:00:56]} 28. Rb1 {[%emt 0:00:19]} Nf4+ {[%emt 0:01:25]} 29. Kf1 {[%emt 0:04:35]} Ba6 {[%emt 0:01:03]} 30. Bb5 {[%emt 0:00:01]} Bxd4 {[%emt 0:01:32]} 31. Bc6 {[%emt 0:01:35]} c3+ {[%emt 0:08:21]} 32. Ke1 {[%emt 0:00:07]} Nd3+ {[%emt 0:01:03]} 33. Kd1 {[%emt 0:00:56]} Nxb2+ {[%emt 0:00:45]} 34. Kc1 {[%emt 0:01:18]} Bxg1 {[%emt 0:01:37]} 35. Rxg1 {[%emt 0:00:23]} Rab8 {[%emt 0:01:33]} 36. Rh1 {[%emt 0:02:16]} Bd3 {[%emt 0:00:28]} 37. Rxb2 {[%emt 0:00:01]} cxb2+ {[%emt 0:00:17]} 38. Kxb2 {[%emt 0:00:02]} Bb5 {[%emt 0:00:18]} 39. Rc1 {[%emt 0:00:16]} Rfc8 {[%emt 0:00:53]} 40. f4 {[%emt 0:00:01]} Bxc6 {[%emt 0:00:20]} 41. dxc6 {[%emt 0:00:02]} Rb6 {[%emt 0:00:21]} 42. c7 {[%emt 0:00:42]} Rb7 {[%emt 0:00:03]} 43. Rd1 {[%emt 0:00:00]} Rbxc7 {[%emt 0:00:57]} 44. Rxd6 {[%emt 0:00:02]} a4 {[%emt 0:00:30]} 45. Rd2 {[%emt 0:00:03]} Rc4 {[%emt 0:00:39]} 0-1